bitfinex-derivatives/quotes_SOLF0:USTF0_20241021
["timestamp","ask_amount","ask_price","bid_price","bid_amount"]
[1729472490176,2.9614,168.87,168.84,1.48181085]
[1729472490379,2.9614,168.87,168.85,1.48181085]
[1729472490571,2.9614,168.87,168.83,2.9619]
[1729472490774,2.9614,168.87,168.84,1.48182448]
[1729472490982,2.9614,168.87,168.85,1.48182448]
[1729472491180,2.9614,168.87,168.83,2.9619]
[1729472491380,2.9614,168.87,168.84,1.48182462]
[1729472491681,2.9614,168.87,168.83,2.9619]
[1729472491876,2.9614,168.87,168.84,1.48185148]
[1729472492084,2.9614,168.87,168.83,2.9619]
[1729472492276,2.9614,168.87,168.84,1.48186461]
[1729472492477,2.9614,168.87,168.83,2.9619]
[1729472492673,2.9614,168.87,168.84,1.48183604]
[1729472492877,2.9614,168.87,168.85,1.48183604]
[1729472493176,2.9614,168.87,168.83,2.9619]
[1729472493377,2.9614,168.87,168.84,1.48181548]
[1729472493577,2.9614,168.87,168.83,2.9619]
[1729472493779,2.9614,168.87,168.84,1.48183624]
[1729472494079,2.9614,168.87,168.83,2.9619]
[1729472494380,2.9614,168.87,168.84,1.4818224]
[1729472494580,87.89811,168.89,168.82,5.08]
[1729472494783,87.89811,168.89,168.83,2.96347174]
[1729472494974,87.89811,168.89,168.84,2.96347174]
[1729472495179,87.89811,168.89,168.85,1.4818224]
[1729472495580,87.89811,168.89,168.86,4.4431224]
[1729472495883,87.89811,168.89,168.87,1.4818224]
[1729472496084,87.89811,168.89,168.88,1.4818224]
[1729472496286,87.89811,168.89,168.86,2.9613]
[1729472496481,87.89811,168.89,168.87,1.48154837]
[1729472496786,87.89811,168.89,168.86,2.9613]
[1729472497083,87.89811,168.89,168.87,1.48157595]
[1729472497282,87.89811,168.89,168.86,2.9613]
[1729472497483,87.89811,168.89,168.87,1.48157595]
[1729472497684,87.89811,168.89,168.86,2.9613]
[1729472498083,87.89811,168.89,168.87,1.48159163]
[1729472498283,87.89811,168.89,168.86,2.9613]
[1729472498478,87.89811,168.89,168.87,4.44279179]
[1729472498685,87.89811,168.89,168.87,2.9612]
[1729472499183,87.89811,168.89,168.81,2.90556588]
[1729472499184,90.85901,168.89,168.83,4.28651857]
[1729472499388,90.85901,168.89,168.84,4.44325218]
[1729472499584,90.85901,168.89,168.85,1.48155218]
[1729472499780,87.89811,168.89,168.81,2.90556588]
[1729472499983,2.9614,168.87,168.82,8.04338858]
[1729472500177,2.9614,168.87,168.83,1.48169429]
[1729472500386,2.9614,168.87,168.82,8.10399905]
[1729472500588,2.9614,168.87,168.83,1.48183078]
[1729472500787,2.9614,168.87,168.82,8.10399905]
[1729472500989,2.9614,168.87,168.83,1.48183078]
[1729472501296,2.9614,168.87,168.84,1.48181002]
[1729472501488,2.9614,168.87,168.82,8.10399905]
[1729472501689,2.9614,168.87,168.83,1.48181323]
[1729472501892,2.9614,168.87,168.83,2.9619]
[1729472502091,81.82011,168.89,168.84,6.56176976]
[1729472502395,73.75081,168.89,168.85,12.32815293]
[1729472502687,73.75081,168.89,168.86,12.32815293]
[1729472502896,71.75081,168.89,168.87,12.32815293]
[1729472503097,71.75081,168.89,168.88,10.20925293]
[1729472503486,69.75081,168.89,168.88,10.20925293]
[1729472504190,3.9727,169.04,168.88,10.20157871]
[1729472504386,3.9727,169.04,168.91,0.36497818]
[1729472504690,3.9727,169.04,168.92,8.93040449]
[1729472504891,2.959,169.0,168.94,2.9599]
[1729472505091,2.959,169.0,168.95,1.48130037]
[1729472505491,2.959,169.0,168.95,4.44110037]
[1729472505693,2.959,169.0,168.96,1.48072029]
[1729472505894,2.959,169.0,168.95,2.9598]
[1729472506390,2.9589,169.01,168.95,2.9598]
[1729472507193,2.9593,168.98,168.92,2.9604]
[1729472507388,2.9593,168.98,168.93,1.48082649]
[1729472507592,2.9593,168.98,168.92,8.0204]
[1729472507796,2.9593,168.98,168.93,1.48083816]
[1729472507996,2.9593,168.98,168.92,8.0204]
[1729472509395,2.9599,168.95,168.93,1.4808305]
[1729472509600,3.9727,169.04,168.89,4.27588704]
[1729472509601,2.5997,168.97,168.89,4.27588704]
[1729472509794,2.5997,168.97,168.9,6.54106705]
[1729472509986,2.5997,168.97,168.9,5.06]
[1729472510189,2.9602,168.94,168.88,2.95342578]
[1729472510391,2.9602,168.94,168.88,5.06]
[1729472510702,2.9604,168.93,168.88,2.94143373]
[1729472510896,2.9604,168.93,168.87,8.0212]
[1729472511400,2.9604,168.93,168.87,10.94768258]
[1729472511895,6.32,168.96,168.87,2.92648258]
[1729472512091,6.32,168.96,168.8,1.84546517]
[1729472512292,6.32,168.96,168.81,8.9119627]
[1729472512490,6.32,168.96,168.82,2.37039769]
[1729472512793,6.32,168.96,168.81,9.51544482]
[1729472512991,2.961,168.89,168.84,2.9616]
[1729472513197,2.961,168.89,168.82,2.37058793]
[1729472513399,2.961,168.89,168.83,1.48161607]
[1729472513696,2.961,168.89,168.84,2.9618]
[1729472520400,2.961,168.89,168.85,2.9615]
[1729472520801,2.961,168.89,168.81,8.03387981]
[1729472520802,1.26,168.96,168.81,8.03387981]
[1729472521001,5.06,168.94,168.82,3.85186878]
[1729472521309,2.9604,168.92,168.83,3.85186878]
[1729472521504,2.9604,168.92,168.86,2.9613]
[1729472521801,2.9604,168.92,168.85,5.06]
[1729472522008,2.9604,168.92,168.87,2.9611]
[1729472522403,2.9604,168.92,168.85,5.06]
[1729472522598,2.9604,168.92,168.86,1.48143231]
[1729472522802,2.9602,168.93,168.85,5.06]
[1729472523009,2.9602,168.93,168.86,1.48142488]
[1729472523307,6.32,168.96,168.89,2.9608]
[1729472523497,2.9601,168.94,168.89,2.9608]
[1729472523905,2.9601,168.94,168.9,2.9607]
[1729472524212,2.9601,168.94,168.9,5.88718258]
[1729472525109,2.9599,168.95,168.91,2.9605]
[1729472525301,1.26,168.96,168.89,5.06]
[1729472525504,2.5997,168.97,168.89,5.06]
[1729472525704,5.06,169.02,168.9,1.48101926]
[1729472525900,5.06,169.02,168.91,1.48101926]
[1729472526612,5.06,169.02,168.95,2.9598]
[1729472526813,1.2651,169.03,168.95,2.98187809]
[1729472527006,1.2651,169.03,168.94,5.06]
[1729472527507,1.2651,169.03,168.94,7.95625087]
[1729472528008,2.9589,169.01,168.96,2.9597]
[1729472528908,4.2236,169.03,168.94,7.95625087]
[1729472529110,2.4725,169.04,168.94,7.95625087]
[1729472529307,2.4725,169.04,168.95,1.48063225]
[1729472529508,2.4725,169.04,168.95,4.44043225]
[1729472529709,2.4725,169.04,168.95,2.9598]
[1729472530016,2.4725,169.04,168.94,2.89625087]
[1729472530211,2.4725,169.04,168.93,5.06]
[1729472530212,7.5325,169.04,168.93,5.06]
[1729472530411,7.5325,169.04,168.93,3.00948277]
[1729472530612,7.5325,169.04,168.92,8.0202]
[1729472531211,7.5325,169.04,168.92,10.92012859]
[1729472531420,7.5325,169.04,168.92,7.95992859]
[1729472532217,1.3159,169.03,168.92,10.92022859]
[1729472532911,1.3159,169.03,168.92,2.89992859]
[1729472533113,2.9598,168.96,168.91,2.9605]
[1729472533320,2.9598,168.96,168.91,5.90365808]
[1729472534220,2.9598,168.96,168.91,2.94315808]
[1729472534421,2.9598,168.96,168.92,2.9603]
[1729472534618,2.9598,168.96,168.92,5.91114175]
[1729472534921,5.06,168.99,168.92,2.95084175]
[1729472535121,5.06,168.99,168.9,5.06]
[1729472535122,2.9595,168.97,168.93,2.9602]
[1729472535415,1.3159,169.03,168.93,2.94491815]
[1729472535617,1.3159,169.03,168.9,5.06]
[1729472535618,5.06,169.02,168.9,5.06]
[1729472535813,5.06,169.02,168.9,7.96789564]
[1729472536614,5.06,169.02,168.9,2.90789564]
[1729472536922,5.06,169.02,168.93,2.9602]
[1729472537419,2.9595,168.97,168.93,2.9602]
[1729472539519,5.06,169.02,168.93,2.9602]
[1729472540525,2.9595,168.98,168.93,2.9602]
[1729472541220,5.06,169.02,168.9,3.00776628]
[1729472541414,2.9599,168.95,168.9,8.0207]
[1729472541619,2.9599,168.95,168.9,10.98511108]
[1729472542419,2.9599,168.95,168.9,5.92511108]
[1729472543019,2.6313,168.97,168.93,2.9601]
[1729472543221,2.6313,168.97,168.89,5.06]
[1729472544517,2.6313,168.97,168.91,2.9605]
[1729472544518,2.9597,168.96,168.91,2.9605]
[1729472544718,2.9597,168.96,168.91,5.90677896]
[1729472545426,2.6313,168.97,168.91,2.94627896]
[1729472545626,2.6313,168.97,168.83,3.85089946]
[1729472545829,1.3236,168.96,168.84,6.52110979]
[1729472546124,2.9603,168.93,168.88,2.9611]
[1729472546521,2.9605,168.92,168.86,2.9613]
[1729472546927,1.3236,168.96,168.86,2.9613]
[1729472547124,2.9609,168.89,168.84,2.9617]
[1729472547321,1.3236,168.96,168.85,5.04]
[1729472547526,5.04,168.95,168.84,5.04]
[1729472548028,5.04,168.95,168.82,1.48140203]
[1729472548217,5.04,168.95,168.83,5.04]
[1729472548419,5.04,168.95,168.84,3.85165898]
[1729472548621,5.04,168.95,168.83,5.04]
[1729472548821,5.04,168.95,168.84,1.48151933]
[1729472549021,2.9612,168.88,168.84,2.9617]
[1729472549622,2.9612,168.88,168.85,1.48151862]
[1729472549923,2.96,168.94,168.9,2.9607]
[1729472550224,1.3236,168.96,168.85,1.48151862]
[1729472550427,2.9609,168.9,168.86,1.48135787]
[1729472550628,2.6323,168.93,168.85,1.48151862]
[1729472550629,7.6723,168.93,168.85,1.48151862]
[1729472550823,7.6723,168.93,168.86,1.48146125]
[1729472551023,2.9609,168.9,168.84,2.9616]
[1729472551222,2.9609,168.9,168.85,1.48152722]
[1729472551528,2.9609,168.9,168.83,8.07353912]
[1729472551724,2.9609,168.9,168.84,3.8519831]
[1729472551924,2.9609,168.9,168.85,1.48153196]
[1729472552125,2.9609,168.9,168.83,8.07353912]
[1729472552326,2.9609,168.9,168.84,3.85197894]
[1729472552524,2.9609,168.9,168.85,1.48153036]
[1729472552724,2.9606,168.91,168.86,4.44291484]
[1729472552925,7.6723,168.93,168.87,1.48139171]
[1729472553128,2.6323,168.93,168.88,1.48139171]
[1729472553341,2.6323,168.93,168.83,8.4381158]
[1729472553342,2.6323,168.93,168.89,1.48139171]
[1729472553633,2.6323,168.93,168.84,0.36457668]
[1729472553819,2.6323,168.93,168.89,2.9609]
[1729472554019,2.6323,168.93,168.9,1.48125082]
[1729472554222,2.6323,168.93,168.89,2.9609]
[1729472554422,2.6323,168.93,168.9,1.48121762]
[1729472554633,6.3636,168.96,168.91,1.48111935]
[1729472554830,6.3636,168.96,168.86,0.36482221]
[1729472554831,6.3636,168.96,168.88,5.04]
[1729472555130,6.3636,168.96,168.91,2.9605]
[1729472556039,9.3233,168.96,168.91,2.9605]
[1729472556238,6.3636,168.96,168.88,5.04]
[1729472556537,5.04,168.98,168.89,3.85080644]
[1729472556739,5.04,168.98,168.9,1.4810794]
[1729472557036,7.9993,168.98,168.91,1.4810794]
[1729472557226,7.9993,168.98,168.88,5.04]
[1729472557430,7.9993,168.98,168.93,2.96]
[1729472557631,7.9993,168.98,168.93,5.94419065]
[1729472558031,7.9993,168.98,168.93,2.98419065]
[1729472558340,7.9993,168.98,168.94,2.96]
[1729472558547,7.9993,168.98,168.94,5.97232942]
[1729472559254,5.04,168.98,168.95,2.9597]
[1729472559641,5.04,168.98,168.95,5.89839837]
[1729472560240,5.04,168.98,168.88,5.04]
[1729472560241,5.04,168.98,168.94,2.96]
[1729472560448,5.04,168.98,168.94,5.94816043]
[1729472560931,5.04,168.98,168.94,2.98816043]
[1729472561134,2.959,169.0,168.88,5.04]
[1729472561339,2.959,169.0,168.89,3.85045809]
[1729472561541,2.9592,168.99,168.95,2.9597]
[1729472561738,6.3439,169.01,168.95,2.98638335]
[1729472561938,6.3439,169.01,168.88,5.04]
[1729472562138,6.3439,169.01,168.89,3.8505646]
[1729472562339,6.3439,169.01,168.9,8.8905646]
[1729472562540,6.3439,169.01,168.91,4.44138638]
[1729472562746,6.3439,169.01,168.91,2.9604]
[1729472563236,6.3439,169.01,168.85,0.36507419]
[1729472563437,2.9603,168.93,168.89,2.9608]
[1729472563647,5.04,168.96,168.9,1.48120553]
[1729472563850,2.5349,168.95,168.85,5.40514812]
[1729472564055,2.9604,168.92,168.88,2.961]
[1729472564254,2.9604,168.92,168.89,1.4812765]
[1729472564550,2.9604,168.92,168.88,2.961]
[1729472564753,2.9604,168.92,168.89,1.48133256]
[1729472564952,2.9604,168.92,168.88,2.961]
[1729472565152,2.9604,168.92,168.89,1.4812994]
[1729472565353,2.9604,168.92,168.88,2.961]
[1729472565553,2.9604,168.92,168.89,1.48129073]
[1729472565754,2.9604,168.92,168.9,1.48126929]
[1729472565954,2.9604,168.92,168.88,2.961]
[1729472566145,2.9604,168.92,168.89,1.48127571]
[1729472566352,2.9604,168.92,168.9,1.48127571]
[1729472566546,2.9604,168.92,168.88,2.961]
[1729472566746,1.2686,168.94,168.89,1.48127216]
[1729472566946,2.9607,168.91,168.87,2.9612]
[1729472567152,2.9607,168.91,168.88,1.48137757]
[1729472567354,2.9607,168.91,168.87,2.9612]
[1729472567656,1.2686,168.94,168.86,2.9614]
[1729472567957,1.2686,168.94,168.87,1.48148016]
[1729472568147,1.2686,168.94,168.88,1.48137306]
[1729472568148,2.9609,168.89,168.88,1.48137306]
[1729472568346,2.9609,168.89,168.85,2.9616]
[1729472568347,5.04,168.91,168.83,3.03353912]
[1729472568654,5.04,168.91,168.84,2.37032782]
[1729472568851,8.0007,168.91,168.86,2.9613]
[1729472569052,5.04,168.91,168.86,2.9613]
[1729472569259,5.04,168.91,168.83,1.48146411]
[1729472569458,2.9609,168.9,168.86,2.9613]
[1729472570354,2.9609,168.9,168.87,2.37027428]
[1729472570546,2.9609,168.9,168.86,2.9613]
[1729472573760,2.9604,168.92,168.86,2.9614]
[1729472573960,2.9604,168.92,168.83,3.03620831]
[1729472574163,2.9604,168.92,168.84,2.3702139]
[1729472574354,2.9604,168.92,168.87,2.9611]
[1729472574852,2.9604,168.92,168.87,2.93132758]
[1729472575052,1.2686,168.94,168.89,2.9609]
[1729472575053,4.2287,168.94,168.89,2.9609]
[1729472575364,4.2287,168.94,168.89,5.97340645]
[1729472575660,4.2287,168.94,168.89,2.9609]
[1729472575861,2.9602,168.93,168.89,2.9609]
[1729472576157,2.9602,168.93,168.89,5.89052176]
[1729472576760,1.2686,168.94,168.89,5.89052176]
[1729472577857,2.9602,168.93,168.89,5.89052176]
[1729472578858,2.9602,168.93,168.9,2.36980288]
[1729472579063,2.9602,168.93,168.91,2.36980288]
[1729472579260,7.5749,168.95,168.89,2.92962176]
[1729472579457,2.5349,168.95,168.9,2.36981533]
[1729472579659,2.5349,168.95,168.91,2.36981533]
[1729472579856,5.4948,168.95,168.92,2.93507333]
[1729472580068,5.4948,168.95,168.87,1.84659891]
[1729472580363,2.96,168.94,168.9,2.9606]
[1729472580562,2.96,168.94,168.91,2.36981137]
[1729472580858,2.96,168.94,168.92,1.4811321]
[1729472581060,2.96,168.94,168.93,1.4811321]
[1729472582656,2.96,168.94,168.9,5.93754213]
[1729472582856,2.96,168.94,168.91,3.85101696]
[1729472583060,2.5349,168.95,168.92,1.48114057]
[1729472583258,2.5349,168.95,168.93,1.48114057]
[1729472583558,2.5349,168.95,168.9,2.98762326]
[1729472584968,2.9605,168.92,168.9,2.98762326]
[1729472586772,5.04,168.93,168.83,5.40519687]
[1729472587079,5.04,168.93,168.84,2.37035857]
[1729472587373,5.04,168.93,168.85,2.37035857]
[1729472587570,2.9614,168.87,168.85,2.37035857]
[1729472587972,2.9614,168.87,168.81,0.36519687]
[1729472588176,2.9614,168.87,168.82,2.37052686]
[1729472588673,2.9614,168.87,168.83,2.37052686]
[1729472588868,2.9614,168.87,168.84,2.37052686]
[1729472589069,2.9614,168.87,168.85,5.39969384]
[1729472589272,2.9614,168.87,168.83,2.9619]
[1729472589469,2.9614,168.87,168.84,2.37053753]
[1729472589669,2.9614,168.87,168.85,3.03064867]
[1729472589871,2.9613,168.87,168.84,2.91300248]
[1729472590070,2.5652,168.88,168.82,2.962]
[1729472590375,3.8248,168.88,168.83,2.37053393]
[1729472590575,2.9616,168.86,168.84,5.31494824]
[1729472590770,2.9616,168.86,168.84,2.94441431]
[1729472590971,2.9616,168.86,168.8,0.36530496]
[1729472591180,2.9616,168.86,168.81,1.48159036]
[1729472591375,2.9616,168.86,168.8,0.36527307]
[1729472591676,2.9616,168.86,168.81,3.85213494]
[1729472591879,2.9616,168.86,168.82,2.9621]
[1729472592272,2.9616,168.86,168.83,2.37054458]
[1729472592471,2.9616,168.86,168.84,5.28596694]
[1729472592679,2.9616,168.86,168.84,2.91542236]
[1729472592877,2.9616,168.86,168.82,2.9621]
[1729472593067,2.9616,168.86,168.83,2.37054715]
[1729472593267,2.9616,168.86,168.84,5.35265346]
[1729472593467,2.9616,168.86,168.84,2.98210631]
[1729472593672,3.8248,168.88,168.8,0.36527307]
[1729472593977,3.8248,168.88,168.81,2.37056256]
[1729472594182,3.8248,168.88,168.82,2.37056256]
[1729472594381,3.8248,168.88,168.83,2.37056256]
[1729472594882,2.9615,168.86,168.77,4.28162319]
[1729472595174,2.9615,168.86,168.78,8.13378204]
[1729472595380,2.9615,168.86,168.79,8.13378204]
[1729472595580,2.9615,168.86,168.8,5.33374032]
[1729472595876,2.9615,168.86,168.81,5.33374032]
[1729472596181,2.9615,168.86,168.82,3.85214075]
[1729472596377,2.9615,168.86,168.83,3.85214075]
[1729472596573,2.9615,168.86,168.84,1.48158147]
[1729472596768,2.9615,168.86,168.85,1.48158147]
[1729472596972,2.9615,168.86,168.85,1.48157666]
[1729472598580,2.9617,168.85,168.81,2.9622]
[1729472598784,2.9617,168.85,168.82,3.85216527]
[1729472598980,2.9617,168.85,168.83,3.85216527]
[1729472599176,2.9617,168.85,168.84,1.48160203]
[1729472600571,2.9617,168.85,168.84,1.48160357]
[1729472600871,2.9617,168.85,168.81,2.9622]
[1729472601071,2.9617,168.85,168.84,2.37054966]
[1729472601278,2.9617,168.85,168.82,2.37054966]
[1729472601474,2.9617,168.85,168.83,1.48159354]
[1729472601671,2.9617,168.85,168.84,3.8521432]
[1729472602182,2.9617,168.85,168.84,1.48159354]
[1729472603283,3.8248,168.88,168.84,1.48159354]
[1729472603481,2.9615,168.86,168.85,1.48159354]
[1729472603684,2.9615,168.86,168.82,2.9621]
[1729472605278,3.8248,168.88,168.77,5.04]
[1729472605479,17.78,168.97,168.77,5.04]
[1729472605790,3.7975,168.96,168.77,5.04]
[1729472606092,2.9607,168.91,168.77,5.04]
[1729472606483,2.9607,168.91,168.87,2.9612]
[1729472606689,2.9607,168.91,168.87,5.86168559]
[1729472607191,2.9603,168.93,168.88,2.961]
[1729472607387,3.7975,168.96,168.87,2.90048559]
[1729472607579,5.02,168.95,168.84,2.5728]
[1729472607785,5.02,168.95,168.84,5.52209383]
[1729472608083,104.43994646,168.98,168.84,5.52209383]
[1729472608490,107.39924646,168.98,168.93,2.9602]
[1729472608984,102.37924646,168.98,168.93,2.9602]
[1729472609183,102.37924646,168.98,168.93,5.96932685]
[1729472609581,2.9598,168.96,168.93,3.00912685]
[1729472609785,99.41994646,168.98,168.84,5.52209383]
[1729472609992,2.6647,168.97,168.85,5.02]
[1729472610186,2.9602,168.94,168.85,5.02]
[1729472610695,11.9199,168.97,168.85,5.02]
[1729472611190,11.9199,168.97,168.91,2.9604]
[1729472611379,11.9199,168.97,168.89,5.02]
[1729472611889,3.9404,168.97,168.89,5.02]
[1729472612084,2.9592,168.99,168.89,5.02]
[1729472612480,2.9592,168.99,168.92,2.9604]
[1729472612681,5.02,169.0,168.89,5.02]
[1729472613088,5.02,169.0,168.92,2.9602]
[1729472613895,5.02,169.0,168.9,2.9606]
[1729472614192,5.02,169.0,168.9,7.9806]
[1729472614883,5.02,169.0,168.84,5.52209383]
[1729472615083,22.8,169.0,168.85,5.02]
[1729472615294,2.9606,168.91,168.85,5.02]
[1729472615486,2.9606,168.91,168.87,2.9612]
[1729472616087,2.9606,168.91,168.84,10.54209383]
[1729472616294,2.9606,168.91,168.86,2.9613]
[1729472618889,5.02,168.94,168.86,2.9613]
[1729472619091,2.9608,168.9,168.86,2.9613]
[1729472619994,2.9605,168.92,168.87,2.9612]
[1729472620386,5.02,168.94,168.87,2.9612]
[1729472621993,2.9606,168.91,168.87,2.9612]
[1729472625292,2.9606,168.91,168.86,2.9614]
[1729472627290,2.9606,168.91,168.84,10.54209383]
[1729472627488,2.9606,168.91,168.87,2.9612]
[1729472627694,2.9605,168.92,168.87,2.9612]
[1729472629799,5.02,168.94,168.86,2.9613]
[1729472630489,5.02,168.94,168.85,2.9615]
[1729472630796,121.68564662,169.02,168.85,2.9615]
[1729472630797,8.8157,168.93,168.85,2.88861078]
[1729472630993,2.961,168.89,168.84,5.02]
[1729472631199,2.961,168.89,168.82,5.02]
[1729472631697,2.961,168.89,168.84,2.9618]
[1729472631998,2.961,168.89,168.84,5.96269626]
[1729472632489,2.9613,168.87,168.84,3.00089626]
[1729472632690,2.9613,168.87,168.81,5.02]
[1729472633693,5.02,168.92,168.81,5.02]
[1729472633900,2.9611,168.88,168.83,2.9618]
[1729472636099,2.9611,168.88,168.81,5.02]
[1729472636398,2.9611,168.88,168.84,2.9617]
[1729472636602,2.9611,168.88,168.84,5.9872487]
[1729472636996,2.9611,168.88,168.84,3.0255487]
[1729472637203,2.9614,168.87,168.81,5.02]
[1729472637406,5.02,168.92,168.81,5.02]
[1729472638205,2.9611,168.88,168.84,2.9618]
[1729472638400,2.9611,168.88,168.84,5.89317867]
[1729472641501,2.9612,168.88,168.84,5.89317867]
[1729472642797,5.02,168.92,168.84,2.93137867]
[1729472643001,2.9611,168.88,168.84,2.9617]
[1729472643301,5.02,168.92,168.84,2.91270615]
[1729472643500,2.961,168.89,168.83,2.9618]
[1729472643706,5.02,168.92,168.83,2.9618]
[1729472644102,2.9612,168.88,168.83,2.9618]
[1729472644308,5.02,168.92,168.83,2.9618]
[1729472644505,5.02,168.92,168.84,2.9618]
[1729472644701,5.02,168.92,168.84,5.99570839]
[1729472644902,2.9612,168.88,168.84,2.9618]
[1729472645405,2.9609,168.89,168.85,2.9616]
[1729472645606,5.02,168.92,168.81,5.02]
[1729472646007,3.7957,168.93,168.81,5.02]
[1729472646907,2.9606,168.91,168.84,2.9617]
[1729472647105,2.9606,168.91,168.85,5.02]
[1729472647706,2.9606,168.91,168.85,8.03351804]
[1729472648012,2.9609,168.89,168.85,8.03351804]
[1729472648311,3.7957,168.93,168.85,3.01351804]
[1729472648511,3.7957,168.93,168.82,5.02]
[1729472649106,2.9606,168.91,168.82,5.02]
[1729472649310,3.7957,168.93,168.82,5.02]
[1729472650220,2.961,168.89,168.84,2.9616]
[1729472650406,3.7957,168.93,168.84,2.96024148]
[1729472650609,3.7957,168.93,168.82,5.02]
[1729472651813,2.9605,168.92,168.85,2.9615]
[1729472652013,2.9605,168.92,168.85,2.96557471]
[1729472652213,2.9605,168.92,168.82,5.02]
[1729472652511,2.9605,168.92,168.87,2.9611]
[1729472652707,2.9605,168.92,168.87,5.89408272]
[1729472653309,3.7957,168.93,168.87,2.93298272]
[1729472653511,3.7957,168.93,168.82,5.02]
[1729472653911,2.9606,168.91,168.86,2.9613]
[1729472654114,2.9606,168.91,168.86,5.87479727]
[1729472656706,2.9608,168.9,168.86,2.91349727]
[1729472656911,2.9608,168.9,168.85,2.9615]
[1729472657311,2.9608,168.9,168.85,5.88803305]
[1729472657717,2.9612,168.88,168.85,2.92653305]
[1729472657916,3.7957,168.93,168.82,5.0]
[1729472658217,2.9612,168.88,168.83,2.9619]
[1729472660713,7.9608,168.9,168.85,2.9615]
[1729472660918,2.9608,168.9,168.85,5.92867703]
[1729472661223,2.9608,168.9,168.82,5.0]
[1729472661419,2.9608,168.9,168.84,2.9617]
[1729472661607,2.9608,168.9,168.84,2.9431765]
[1729472661917,2.9608,168.9,168.85,2.9614]
[1729472662117,2.9608,168.9,168.85,5.95494799]
[1729472662319,2.9608,168.9,168.85,2.9614]
[1729472662916,2.9608,168.9,168.85,5.92490068]
[1729472663113,5.02,168.92,168.87,2.9611]
[1729472663114,7.9805,168.92,168.87,2.9611]
[1729472663314,3.7957,168.93,168.85,2.96350068]
[1729472663617,3.7957,168.93,168.82,5.0]
[1729472663819,6.756,168.93,168.88,2.9609]
[1729472664117,6.756,168.93,168.88,5.95847753]
[1729472664419,6.756,168.93,168.88,2.9609]
[1729472664815,6.756,168.93,168.88,5.87639677]
[1729472665016,2.9604,168.92,168.88,5.87639677]
[1729472668121,2.9604,168.92,168.89,2.9609]
[1729472668622,2.9604,168.92,168.88,5.87649677]
[1729472670323,2.9608,168.9,168.88,2.91549677]
[1729472670526,2.9608,168.9,168.86,7.9813]
[1729472671123,2.9608,168.9,168.86,10.92501851]
[1729472674029,3.7957,168.93,168.86,7.96371851]
[1729472674329,2.9605,168.92,168.86,7.96371851]
[1729472675526,2.9605,168.92,168.87,2.9612]
[1729472676528,2.9606,168.91,168.87,2.9612]
[1729472676826,3.7957,168.93,168.86,7.96371851]
[1729472677424,3.7957,168.93,168.86,2.94371851]
[1729472677628,3.7957,168.93,168.83,5.0]
[1729472678328,3.7957,168.93,168.81,5.0]
[1729472678918,3.7957,168.93,168.83,2.9619]
[1729472679225,21.5757,168.93,168.81,5.0]
[1729472680134,2.9616,168.86,168.82,2.9621]
[1729472680537,5.0,168.89,168.81,5.0]
[1729472680837,5.0,168.89,168.76,2.7004]
[1729472681033,5.0,168.89,168.77,5.0]
[1729472681230,2.9615,168.86,168.79,2.9625]
[1729472681431,5.0,168.89,168.79,2.9625]
[1729472681831,2.9617,168.85,168.79,2.9625]
[1729472682333,5.0,168.89,168.77,5.0]
[1729472682537,2.962,168.83,168.78,2.9627]
[1729472684135,22.78,168.89,168.76,5.0]
[1729472684430,22.78,168.89,168.76,2.963]
[1729472685636,2.9623,168.82,168.77,2.963]
[1729472688045,2.9625,168.81,168.76,2.9632]
[1729472688245,5.0,168.84,168.76,2.9632]
[1729472688641,2.9624,168.81,168.76,2.9632]